[Event "Istanbul Open 2018"]
[Site "Istanbul"]
[Date "2018.09.06"]
[Round "7"]
[White "Temizer, Umut"]
[Black "Topsir, Furkan"]
[Result "0-1"]
[ECO "B06"]
[WhiteElo "1476"]
[BlackElo "1550"]
[Annotator "NA RC"]
[PlyCount "58"]
[EventDate "2018.09.02"]
[EventType "swiss"]
[EventCountry "TUR"]
[SourceTitle "playchess.com"]
[Source "ChessBase"]
[SourceQuality "1"]
[TimeControl "5400+30"]

1. e4 {[%emt 0:00:30]} g6 {[%emt 0:00:30]} 2. d4 {[%emt 0:00:00]} Bg7 {[%emt 0:00:30]} 3. Nf3 {[%emt 0:00:00]} d6 {[%emt 0:00:30]} 4. Bc4 {[%emt 0:01:30]} e6 {[%emt 0:00:00]} 5. Nc3 {[%emt 0:00:30]} a6 {[%emt 0:00:00]} 6. a4 {[%emt 0:00:30]} b6 {[%emt 0:00:30]} 7. O-O {[%emt 0:00:00]} Ne7 {[%emt 0:00:30]} 8. Bb3 {[%emt 0:02:00]} Nd7 {[%emt 0:01:30]} 9. Bg5 {[%emt 0:03:30]} h6 {[%emt 0:00:30]} 10. Be3 {[%emt 0:08:30]} O-O {[%emt 0:02:30]} 11. Qd2 {[%emt 0:01:30]} Kh7 {[%emt 0:01:30]} 12. h4 {[%emt 0:03:30]} Nf6 {[%emt 0:00:30]} 13. Rad1 {[%emt 0:08:30]} Bb7 {[%emt 0:07:30]} 14. Qd3 {[%emt 0:12:30]} c5 {[%emt 0:25:30]} 15. dxc5 {[%emt 0:14:30]} dxc5 {[%emt 0:01:30]} 16. a5 {[%emt 0:00:30]} Qc7 {[%emt 0:40:01]} 17. axb6 {[%emt 0:03:30]} Qxb6 {[%emt 0:01:45]} 18. Na4 {[%emt 0:00:30]} Qc7 {[%emt 0:03:21]} 19. Nxc5 {[%emt 0:05:30]} Rfd8 {[%emt 0:02:37]} 20. Qc4 {[%emt 0:10:30]} Rxd1 {[%emt 0:03:07]} 21. Rxd1 {[%emt 0:00:30]} Rc8 {[%emt 0:00:00]} 22. Qb4 {[%emt 0:03:38]} Rb8 {[%emt 0:00:55]} 23. Nd7 {[%emt 0:07:26]} Nc6 {[%emt 0:04:25]} 24. Qd6 {[%emt 0:05:00]} Qxd7 {[%emt 0:00:48]} 25. Qxd7 {[%emt 0:00:44]} Nxd7 {[%emt 0:00:30]} 26. Rxd7 {[%emt 0:00:33]} Kg8 {[%emt 0:00:30]} 27. Bf4 {[%emt 0:00:30]} e5 {[%emt 0:00:30]} 28. Be3 {[%emt 0:01:16]} Bc8 {[%emt 0:01:17]} 29. Bd5 {[%emt 0:01:38]} Bxd7 {[%emt 0:00:23]} 0-1

[Event "Istanbul Open 2018"]
[Site "Istanbul"]
[Date "2018.09.07"]
[Round "8"]
[White "Aliakbarov, Anar"]
[Black "Guven, Oguz Kagan"]
[Result "0-1"]
[ECO "A61"]
[WhiteElo "2322"]
[BlackElo "2022"]
[Annotator "NA"]
[PlyCount "76"]
[EventDate "2018.09.02"]
[EventType "swiss"]
[EventCountry "TUR"]
[SourceTitle "playchess.com"]
[Source "ChessBase"]
[SourceQuality "1"]
[TimeControl "5400+30"]

1. d4 {[%emt 0:00:30]} Nf6 {[%emt 0:01:30]} 2. c4 {[%emt 0:00:00]} c5 {[%emt 0:00:30]} 3. d5 {[%emt 0:01:00]} e6 {[%emt 0:01:30]} 4. Nc3 {[%emt 0:00:30]} exd5 {[%emt 0:00:00]} 5. cxd5 {[%emt 0:00:30]} d6 {[%emt 0:00:00]} 6. Nf3 {[%emt 0:00:30]} g6 {[%emt 0:00:30]} 7. Bf4 {[%emt 0:01:30]} a6 {[%emt 0:00:30]} 8. a4 {[%emt 0:05:30]} Bg7 {[%emt 0:00:00]} 9. h3 {[%emt 0:00:30] A61: Modern Benoni: Nf3 without early e4} (9. e3 O-O 10. h3 Qe7 11. Bd3 Nbd7 12. O-O Ne8 13. e4 Rb8 14. Re1 Nc7 15. Qd2 Ne5 16. Nxe5 Bxe5 17. Bxe5 Qxe5 18. a5 {1-0 (42) Akobian,V (2647)-Ponkratov,P (2613) Riadh 2017}) 9... O-O {[%emt 0:00:00]} 10. Nd2 {[%emt 0:01:30]} Nh5 {[%emt 0:17:30]} 11. Bh2 {[%emt 0:10:30]} f5 {[%emt 0:00:30]} 12. g3 {[%emt 0:04:30]} Nd7 {[%emt 0:08:30]} 13. g4 $146 {[%emt 0:12:30]} ({Predecessor:} 13. e3 Ne5 14. Be2 Qe7 15. Kf1 Nf6 {½-½ (30) Sherwin,J (2184)-Turner,J (1951) Newport 2008}) 13... fxg4 {[%emt 0:00:30]} 14. hxg4 {[%emt 0:06:30]} Qh4 {[%emt 0:17:30]} 15. Nf3 {[%emt 0:01:30]} Qxg4 {[%emt 0:00:30]} 16. Bxd6 {[%emt 0:02:30]} Re8 {[%emt 0:01:30]} 17. e3 {[%emt 0:03:30]} Qb4 {[%emt 0:01:30]} 18. Qc2 {[%emt 0:04:30]} Ndf6 {[%emt 0:01:30]} 19. Rh4 {[%emt 0:17:30]} Qb6 {[%emt 0:03:30]} 20. Bh2 {[%emt 0:01:30]} Bf5 {[%emt 0:02:30]} 21. a5 {[%emt 0:02:30]} Qd8 {[%emt 0:10:30]} 22. Bd3 {[%emt 0:03:51]} Bxd3 {[%emt 0:00:30]} 23. Qxd3 {[%emt 0:00:06]} Nd7 {[%emt 0:00:00]} 24. d6 {[%emt 0:06:20]} Qf6 {[%emt 0:01:30]} 25. Qd5+ {[%emt 0:01:20]} Kh8 $1 {[%emt 0:01:30]} 26. Ke2 {[%emt 0:06:40]} Rf8 {[%emt 0:00:00]} 27. Rh1 {[%emt 0:01:41]} Rae8 {[%emt 1:26:51]} 28. Rh3 {[%emt 1:43:51]} b5 {[%emt 0:00:30]} 29. axb6 {[%emt 0:00:30]} Nxb6 {[%emt 0:00:30]} 30. Qxc5 {[%emt 0:00:30]} Nd7 {[%emt 0:00:30]} 31. Qc6 {[%emt 0:00:30]} Qf5 {[%emt 0:00:30]} 32. Rh4 {[%emt 0:00:30]} Rb8 {[%emt 0:00:30]} 33. Nd1 {[%emt 0:00:30]} Rbc8 {[%emt 0:00:30]} 34. Qe4 {[%emt 0:00:30]} Qb5+ {[%emt 0:00:30]} 35. Ke1 $2 {[%emt 0:00:30]} (35. Qd3 Qxd3+ 36. Kxd3 Rxf3 37. b3) 35... Nc5 {[%emt 0:00:30]} 36. Nd4 {[%emt 0:00:30]} Qb4+ {[%emt 0:00:30]} 37. Kf1 $19 {[%emt 0:00:30]} Nxe4 {[%emt 0:00:30]} 38. Rxe4 {[%emt 0:00:30]} Qb7 {[%emt 0:00:30]} 0-1

[Event "Istanbul Open 2018"]
[Site "Istanbul"]
[Date "2018.09.07"]
[Round "8"]
[White "Gulsoy, Mustafa Alpago"]
[Black "Ozsakallioglu, Akin"]
[Result "1-0"]
[ECO "B22"]
[WhiteElo "2061"]
[BlackElo "1861"]
[Annotator "NA"]
[PlyCount "65"]
[EventDate "2018.09.02"]
[EventType "swiss"]
[EventCountry "TUR"]
[SourceTitle "playchess.com"]
[Source "ChessBase"]
[SourceQuality "1"]
[TimeControl "5400+30"]

1. e4 {[%emt 0:00:30]} c5 {[%emt 0:00:30]} 2. c3 {[%emt 0:00:00]} Nf6 {[%emt 0:00:00]} 3. e5 {[%emt 0:00:00]} Nd5 {[%emt 0:00:00]} 4. d4 {[%emt 0:00:00]} cxd4 {[%emt 0:00:00]} 5. Nf3 {[%emt 0:00:00]} Nc6 {[%emt 0:00:00]} 6. cxd4 {[%emt 0:00:30]} d6 {[%emt 0:00:00]} 7. Be2 {[%emt 0:02:30]} dxe5 {[%emt 0:01:00] B22: Sicilian: 2 c3} 8. Nxe5 {[%emt 0:00:30]} (8. dxe5 e6 9. O-O Be7 10. Nbd2 O-O 11. Nc4 Qc7 12. Qc2 Bd7 13. Qe4 b5 14. Ne3 Ncb4 15. a3 Nxe3 16. Bxe3 {½-½ (65) Savic,M (2539)-Kovacevic,A (2571) Vrnjacka Banja 2013}) 8... e6 {[%emt 0:00:30]} 9. O-O {[%emt 0:02:30]} Nxe5 {[%emt 0:01:30]} 10. dxe5 {[%emt 0:00:00]} Bd7 {[%emt 0:00:30]} 11. Qb3 {[%emt 0:13:00]} Qb6 $146 ({Predecessor:} 11... Bc6 12. Qg3 g6 13. Nd2 Ne7 14. Qf4 Nf5 15. Ne4 Bg7 16. Rd1 Qc7 17. Nd6+ {½-½ (17) Fleuch,H (2078)-Andersson,K (2058) Rogaska Slatina 2012}) 12. Qg3 h5 13. h4 g6 14. Na3 Bxa3 15. bxa3 Qd4 16. Be3 Qb2 17. Bf3 Nxe3 18. fxe3 Bc6 19. Bxc6+ bxc6 20. Rab1 Qc2 21. Rb7 O-O 22. Rf4 Rab8 {[%emt 1:17:00]} 23. Rxa7 {[%emt 1:20:30]} Ra8 {[%emt 0:00:30]} 24. Rb7 {[%emt 0:00:30]} Rxa3 {[%emt 0:00:30]} 25. Qg5 {[%emt 0:00:30]} Rxa2 {[%emt 0:00:30]} 26. Kh2 {[%emt 0:00:30]} Rb2 {[%emt 0:08:18]} 27. Rc7 {[%emt 0:01:30]} Ra2 {[%emt 0:01:51]} 28. Re7 $11 {[%emt 0:00:42]} Rb2 {[%emt 1:37:12]} 29. Rc7 {[%emt 1:41:09]} Ra2 {[%emt 0:00:30]} 30. Re7 {[%emt 0:00:30]} Rb2 {[%emt 0:00:30]} 31. Rd7 {[%emt 0:00:30]} Ra2 {[%emt 0:00:30]} 32. Rf6 {[%emt 0:00:30]} Ra4 {[%emt 0:00:30]} 33. Rdxf7 {[%emt 0:00:30]} 1-0

[Event "Istanbul Open 2018"]
[Site "Istanbul"]
[Date "2018.09.07"]
[Round "8"]
[White "Akin, Yagiz Cinar"]
[Black "Aydin, Kaan Ayhan"]
[Result "*"]
[ECO "C50"]
[WhiteElo "1963"]
[BlackElo "1877"]
[Annotator "NA"]
[PlyCount "62"]
[EventDate "2018.09.02"]
[EventType "swiss"]
[EventCountry "TUR"]
[SourceTitle "playchess.com"]
[Source "ChessBase"]
[SourceQuality "1"]
[TimeControl "5400+30"]

1. e4 {[%emt 0:00:30]} e5 {[%emt 0:00:30]} 2. Nf3 {[%emt 0:00:00]} Nc6 {[%emt 0:00:00]} 3. Bc4 {[%emt 0:00:00]} Bc5 {[%emt 0:00:00]} 4. O-O {[%emt 0:00:00]} Nf6 {[%emt 0:01:30]} 5. d3 {[%emt 0:00:00]} d6 {[%emt 0:00:30]} 6. h3 {[%emt 0:00:30]} Be6 {[%emt 0:00:30]} 7. Bxe6 {[%emt 0:03:30]} fxe6 {[%emt 0:00:30]} 8. c3 {[%emt 0:00:00]} Bb6 {[%emt 0:00:30]} 9. b4 {[%emt 0:01:00]} O-O {[%emt 0:00:00]} 10. a4 {[%emt 0:00:30]} a5 {[%emt 0:02:00]} 11. b5 {[%emt 0:02:30]} Ne7 {[%emt 0:01:30]} 12. Qb3 {[%emt 0:01:30]} Qd7 {[%emt 0:00:30]} 13. Nbd2 {[%emt 0:00:30]} Nh5 {[%emt 0:01:30]} 14. Nc4 {[%emt 0:13:30]} Ng6 {[%emt 0:00:30]} 15. Nxb6 {[%emt 0:06:30]} cxb6 {[%emt 0:00:30]} 16. Qd1 {[%emt 0:03:30]} Ngf4 {[%emt 0:02:30]} 17. g3 {[%emt 0:03:30]} Ng6 {[%emt 0:05:30]} 18. Ba3 {[%emt 0:04:30]} Rac8 {[%emt 0:05:30]} 19. Rc1 {[%emt 0:03:30]} h6 {[%emt 0:03:30]} 20. Nd2 {[%emt 0:04:30]} Nhf4 {[%emt 0:00:30]} 21. gxf4 {[%emt 0:07:30]} Rxf4 {[%emt 0:00:00]} 22. f3 {[%emt 0:06:30]} Rh4 {[%emt 0:02:00]} 23. Nc4 {[%emt 0:06:30]} Nf4 {[%emt 0:00:30]} 24. Kf2 {[%emt 0:01:30]} Rxh3 {[%emt 0:06:30]} 25. Rh1 {[%emt 0:01:30]} Rxh1 {[%emt 0:00:30]} 26. Qxh1 {[%emt 0:01:30]} Nxd3+ {[%emt 0:00:00]} 27. Ke3 {[%emt 0:01:30]} Nxc1 {[%emt 0:00:00]} 28. Nxb6 {[%emt 0:03:30]} Rxc3+ {[%emt 0:00:30]} 29. Kd2 {[%emt 0:00:30]} Rd3+ {[%emt 0:01:30]} 30. Kxc1 {[%emt 0:00:30]} Qc7+ {[%emt 0:00:00]} 31. Kb1 {[%emt 0:00:30]} Qxb6 {[%emt 0:00:00]} *

[Event "Istanbul Open 2018"]
[Site "Istanbul"]
[Date "2018.09.07"]
[Round "8"]
[White "Aydin, Hasan Bora"]
[Black "Kuseyri, Mehmet Ali"]
[Result "0-1"]
[ECO "B94"]
[WhiteElo "1950"]
[BlackElo "1962"]
[Annotator "NA"]
[PlyCount "72"]
[EventDate "2018.09.02"]
[EventType "swiss"]
[EventCountry "TUR"]
[SourceTitle "playchess.com"]
[Source "ChessBase"]
[SourceQuality "1"]
[TimeControl "5400+30"]

1. e4 c5 2. Nf3 d6 3. d4 cxd4 4. Nxd4 Nf6 5. Nc3 a6 6. Bg5 Nbd7 7. f4 Qc7 8. Qe2 {B94: Sizilianisch (Najdorf-Variante mit 6.Lg5)} g6 9. O-O-O Bg7 10. Bxf6 Nxf6 11. e5 dxe5 12. fxe5 Ng4 $146 ({Vorgänger:} 12... Bg4 13. Nf3 Nd7 {0-1 (36) Sommerbauer,N (2427)-Czebe,A (2494) Oberwart 2005}) 13. e6 Qf4+ 14. Kb1 Bxd4 15. Nd5 Qe5 16. Qxg4 {[%emt 1:19:16]} Qxd5 {[%emt 0:57:00]} 17. exf7+ {[%emt 0:00:30]} Kxf7 {[%emt 0:00:30]} 18. Qf4+ {[%emt 0:00:30]} Kg7 {[%emt 0:00:30]} 19. Rxd4 {[%emt 0:00:30]} e5 {[%emt 0:00:30]} 20. Rxd5 {[%emt 0:00:30]} exf4 {[%emt 0:00:30]} 21. Bd3 {[%emt 0:00:30]} Rf8 {[%emt 0:00:30]} 22. Re1 {[%emt 0:00:30]} Bg4 {[%emt 0:01:30]} 23. Re7+ {[%emt 0:06:12]} Rf7 {[%emt 0:00:30]} 24. Rxf7+ {[%emt 0:00:24]} Kxf7 {[%emt 0:00:00]} 25. Rd4 {[%emt 0:01:36]} g5 {[%emt 0:02:00]} 26. h3 {[%emt 0:00:43]} Re8 {[%emt 0:00:30]} 27. Re4 {[%emt 0:02:48]} Be6 {[%emt 0:08:30]} 28. Be2 {[%emt 0:02:51]} Bxa2+ {[%emt 0:00:00]} 29. Kxa2 {[%emt 0:00:54]} Rxe4 {[%emt 0:00:00]} 30. Bf3 {[%emt 0:00:12]} Re7 {[%emt 0:00:30]} 31. c4 $19 {[%emt 0:00:36]} (31. Kb3 $142) 31... b6 {[%emt 0:05:30]} 32. b4 {[%emt 0:00:34]} Re3 {[%emt 0:00:00]} 33. Bb7 {[%emt 0:00:56]} a5 {[%emt 0:14:51]} 34. c5 {[%emt 0:01:53]} axb4 {[%emt 0:00:00]} 35. cxb6 {[%emt 0:00:12]} Ke7 {[%emt 0:00:00]} 36. Be4 {[%emt 0:02:49]} Kd6 {[%emt 0:00:00]} 0-1

[Event "Istanbul Open 2018"]
[Site "Istanbul"]
[Date "2018.09.07"]
[Round "8"]
[White "Oztekin, Kerem Can"]
[Black "Kelpetin, Umut Can"]
[Result "1/2-1/2"]
[ECO "B91"]
[WhiteElo "1943"]
[BlackElo "1798"]
[Annotator "NA RC"]
[PlyCount "77"]
[EventDate "2018.09.02"]
[EventType "swiss"]
[EventCountry "TUR"]
[SourceTitle "playchess.com"]
[Source "ChessBase"]
[SourceQuality "1"]
[TimeControl "5400+30"]

1. e4 {[%emt 0:01:30]} c5 {[%emt 0:00:30]} 2. Nf3 {[%emt 0:00:30]} d6 {[%emt 0:00:30]} 3. d4 {[%emt 0:00:30]} cxd4 {[%emt 0:00:30]} 4. Nxd4 {[%emt 0:00:00]} Nf6 {[%emt 0:00:00]} 5. Nc3 {[%emt 0:00:00]} a6 {[%emt 0:00:00]} 6. g3 {[%emt 0:00:30]} e5 {[%emt 0:00:30]} 7. Nde2 {[%emt 0:00:30]} Be6 {[%emt 0:00:30]} 8. Bg2 {[%emt 0:00:00]} Be7 {[%emt 0:01:30]} 9. a4 {[%emt 0:04:00]} O-O {[%emt 0:00:30]} 10. O-O {[%emt 0:00:00]} Qc7 {[%emt 0:01:30]} 11. h3 $11 {[%emt 0:02:00]} h6 12. g4 Kh7 13. Ng3 g6 14. f4 exf4 15. Bxf4 Nbd7 16. Kh1 Rac8 17. g5 hxg5 18. Bxg5 Kg7 19. Qd2 Rh8 20. h4 Qa5 21. Kg1 Qb6+ 22. Be3 Qb4 23. h5 Nxh5 24. Bd4+ Ne5 25. Nf5+ gxf5 26. exf5 {[%emt 1:38:47]} Bc4 {[%emt 1:38:22]} 27. f6+ {[%emt 0:00:30]} Nxf6 {[%emt 0:00:30]} 28. Qg5+ {[%emt 0:00:31]} Kf8 {[%emt 0:00:30]} 29. Rxf6 {[%emt 0:00:30]} Bxf6 {[%emt 0:00:30]} 30. Qxf6 {[%emt 0:00:30]} Rg8 {[%emt 0:00:30]} 31. Rd1 {[%emt 0:00:30]} Re8 {[%emt 0:00:30]} 32. Qh6+ {[%emt 0:01:24]} Ke7 {[%emt 0:01:43]} 33. Bxe5 {[%emt 0:00:30]} dxe5 {[%emt 0:01:34]} 34. Qh4+ {[%emt 0:00:09]} Kf8 {[%emt 0:00:28]} 35. Qh6+ {[%emt 0:00:49]} Rg7 {[%emt 0:01:34]} 36. Qh8+ {[%emt 0:00:20]} Rg8 {[%emt 0:00:07]} 37. Qh6+ {[%emt 0:00:09]} Rg7 {[%emt 0:00:02]} 38. Qh8+ {[%emt 0:02:45]} Rg8 {[%emt 0:00:08]} 39. Qh4 {[%emt 0:00:47]} 1/2-1/2

[Event "Istanbul Open 2018"]
[Site "Istanbul"]
[Date "2018.09.07"]
[Round "8"]
[White "Ozveren, Ali Bulent"]
[Black "Bagaturov, Giorgi"]
[Result "0-1"]
[ECO "A48"]
[WhiteElo "1849"]
[BlackElo "2396"]
[Annotator "ChessBase"]
[PlyCount "46"]
[EventDate "2018.09.02"]
[EventType "swiss"]
[EventCountry "TUR"]
[SourceTitle "playchess.com"]
[Source "ChessBase"]
[SourceQuality "1"]
[TimeControl "5400+30"]

1. d4 Nf6 2. Nf3 c5 3. c3 b6 4. Bf4 g6 5. e3 Bg7 6. Be2 O-O 7. O-O d6 8. h3 Bb7 9. Nbd2 Nbd7 10. Bh2 Qc7 11. a4 a6 12. b4 a5 13. bxc5 bxc5 14. Qc2 cxd4 15. Nxd4 Rfc8 16. Rfc1 Nd5 17. Ra3 {[%emt 1:19:15]} Qd8 {[%emt 1:01:30]} 18. Nc4 {[%emt 0:00:30]} Ba6 {[%emt 0:03:30]} 19. Nb5 {[%emt 0:00:33]} Nxc3 {[%emt 0:11:30]} 20. Nxc3 {[%emt 0:08:45]} Bxc4 {[%emt 0:00:30]} 21. Bf3 {[%emt 0:01:59]} Rab8 {[%emt 0:00:30]} 22. Qd2 {[%emt 0:01:49]} Nc5 {[%emt 0:05:48]} 23. Nd1 {[%emt 0:00:51]} Nb3 {[%emt 0:00:31]} 0-1

[Event "Istanbul Open 2018"]
[Site "Istanbul"]
[Date "2018.09.07"]
[Round "8"]
[White "Gonullu, Muhammed Sinan"]
[Black "Emir, Emirhan"]
[Result "0-1"]
[ECO "C07"]
[WhiteElo "1816"]
[BlackElo "1852"]
[Annotator "NA"]
[PlyCount "105"]
[EventDate "2018.09.02"]
[EventType "swiss"]
[EventCountry "TUR"]
[SourceTitle "playchess.com"]
[Source "ChessBase"]
[SourceQuality "1"]
[TimeControl "5400+30"]

1. d4 {[%emt 0:00:30]} e6 {[%emt 0:00:30]} 2. e4 {[%emt 0:00:30]} d5 {[%emt 0:00:00]} 3. Nd2 {[%emt 0:00:30]} c5 {[%emt 0:00:00]} 4. exd5 {[%emt 0:00:00]} Qxd5 {[%emt 0:00:00]} 5. Ngf3 {[%emt 0:00:00]} cxd4 {[%emt 0:00:00]} 6. Bc4 {[%emt 0:00:30]} Qd7 {[%emt 0:00:30]} 7. O-O {[%emt 0:00:30]} Nc6 {[%emt 0:00:00]} 8. Nb3 {[%emt 0:00:30]} Nf6 {[%emt 0:00:00]} 9. Nfxd4 {[%emt 0:00:30]} Nxd4 {[%emt 0:00:30]} 10. Qxd4 {[%emt 0:00:30]} Qxd4 {[%emt 0:00:30]} 11. Nxd4 {[%emt 0:00:30]} Bc5 {[%emt 0:00:00]} 12. Nb3 {[%emt 0:00:30]} Bb6 {[%emt 0:01:00]} 13. a4 {[%emt 0:02:30]} a6 {[%emt 0:00:30]} 14. Bg5 {[%emt 0:00:30]} Bd7 {[%emt 0:01:30]} 15. Bd3 {[%emt 0:00:30]} Bc6 {[%emt 0:00:30]} 16. Rfe1 {[%emt 0:01:30]} h6 {[%emt 0:06:30]} 17. Bxf6 {[%emt 0:00:30]} gxf6 {[%emt 0:00:00]} 18. Be4 {[%emt 0:00:00]} Rc8 {[%emt 0:01:00]} 19. Bxc6+ {[%emt 0:01:00]} Rxc6 {[%emt 0:00:30]} 20. c3 {[%emt 0:00:00]} Ke7 {[%emt 0:01:30]} 21. Red1 {[%emt 0:00:00]} f5 {[%emt 0:00:30]} 22. Rd3 {[%emt 0:01:30]} Rd8 {[%emt 0:04:30]} 23. Rxd8 {[%emt 0:00:30]} Bxd8 {[%emt 0:00:30]} 24. Nd4 {[%emt 0:00:30]} Rc4 {[%emt 0:00:30]} 25. Kf1 {[%emt 0:00:00]} Bb6 {[%emt 0:02:30]} 26. Ne2 {[%emt 0:01:00]} e5 {[%emt 0:02:30]} 27. b3 {[%emt 0:00:00]} Rc8 {[%emt 0:00:30]} 28. Rd1 {[%emt 0:02:00]} Ke6 {[%emt 0:01:30]} 29. Ke1 {[%emt 0:05:30]} f4 {[%emt 0:00:30]} 30. Rd3 {[%emt 0:01:30]} Rg8 {[%emt 0:03:30]} 31. Kf1 {[%emt 0:00:30]} Rd8 {[%emt 0:03:30]} 32. Rxd8 {[%emt 0:00:30]} Bxd8 {[%emt 0:02:30]} 33. Ke1 {[%emt 0:00:30]} Bb6 {[%emt 0:00:30]} 34. Nc1 {[%emt 0:00:30]} e4 {[%emt 0:01:30]} 35. Ke2 {[%emt 0:00:30]} h5 {[%emt 0:00:30]} 36. f3 {[%emt 0:00:30]} f5 {[%emt 0:00:30]} 37. Na2 {[%emt 0:00:30]} a5 {[%emt 0:01:30]} 38. Kf1 {[%emt 0:01:30]} Be3 {[%emt 0:01:30]} 39. Ke2 {[%emt 0:00:30]} Bg1 {[%emt 0:00:30]} 40. h3 {[%emt 0:00:30]} Kf6 {[%emt 0:02:30]} 41. Kf1 {[%emt 0:00:00]} Be3 {[%emt 0:01:30]} 42. c4 {[%emt 0:03:00]} Bd2 {[%emt 0:01:30]} 43. Ke2 {[%emt 0:00:30]} e3 {[%emt 0:00:30]} 44. h4 {[%emt 0:00:30]} Ke5 {[%emt 0:00:30]} 45. Kd3 {[%emt 0:04:30]} b6 {[%emt 0:00:30]} 46. Nc3 {[%emt 0:00:30]} Bxc3 {[%emt 0:00:30]} 47. Kxc3 {[%emt 0:00:30]} e2 {[%emt 0:01:30]} 48. Kd2 {[%emt 0:00:00]} Kd4 {[%emt 0:00:00]} 49. Kxe2 {[%emt 0:00:00]} Kc3 {[%emt 0:00:00]} 50. b4 {[%emt 0:01:30]} Kxb4 {[%emt 0:02:30]} 51. Kd3 {[%emt 0:00:00]} Kxa4 {[%emt 0:00:30]} 52. Kc3 {[%emt 0:00:00]} Ka3 {[%emt 0:00:00]} 53. Kd4 {[%emt 0:00:30]} 0-1

[Event "Istanbul Open 2018"]
[Site "Istanbul"]
[Date "2018.09.07"]
[Round "8"]
[White "Kavacik, Ahmet"]
[Black "Mehrinejad, Mansour"]
[Result "1-0"]
[ECO "A96"]
[WhiteElo "1800"]
[BlackElo "1839"]
[Annotator "NA RC"]
[PlyCount "118"]
[EventDate "2018.09.02"]
[EventType "swiss"]
[EventCountry "TUR"]
[SourceTitle "playchess.com"]
[Source "ChessBase"]
[SourceQuality "1"]
[TimeControl "5400+30"]

1. c4 f5 2. Nc3 Nf6 3. d4 e6 4. Nf3 Be7 5. g3 O-O 6. Bg2 Ne4 7. Qc2 Nxc3 8. Qxc3 d6 9. O-O Nd7 10. Bf4 Nf6 11. Bg5 h6 12. Bxf6 Bxf6 13. Rad1 Qe7 14. Rfe1 e5 15. dxe5 dxe5 16. e4 fxe4 17. Nd2 Bg4 18. Rb1 Bf3 19. Nxe4 Bxg2 20. Kxg2 Rad8 21. Re2 Rd4 22. b3 Qd7 23. Rbe1 Kh8 24. Qe3 Kh7 25. h4 Qf5 26. Qc1 Be7 27. Qc2 Kh8 28. Re3 Qg4 29. Qe2 Qg6 30. Kh2 Bb4 31. Rd1 Rfd8 32. Red3 Qf5 33. Kg2 Qd7 34. Rxd4 exd4 35. Rd3 Be7 36. Qh5 {[%emt 1:37:41]} Kg8 {[%emt 1:37:03]} 37. Qg6 {[%emt 0:00:30]} c5 {[%emt 0:00:30]} 38. Nc3 {[%emt 0:00:30]} Qc6+ {[%emt 0:00:30]} 39. Qxc6 {[%emt 0:00:30]} bxc6 {[%emt 0:00:30]} 40. Ne4 {[%emt 0:00:30]} Kf7 {[%emt 0:00:30]} 41. f4 {[%emt 0:00:30]} Ke6 {[%emt 0:00:30]} 42. Kf3 {[%emt 0:00:30]} Kf5 {[%emt 0:00:30]} 43. g4+ {[%emt 0:00:30]} Ke6 {[%emt 0:00:30]} 44. Rd2 {[%emt 0:00:28]} a5 {[%emt 0:00:55]} 45. g5 {[%emt 0:01:43]} a4 {[%emt 0:01:41]} 46. Kg4 {[%emt 0:00:37]} hxg5 {[%emt 0:00:47]} 47. hxg5 {[%emt 0:00:07]} axb3 {[%emt 0:01:05]} 48. axb3 {[%emt 0:00:02]} Rb8 {[%emt 0:00:24]} 49. Rd3 {[%emt 0:00:11]} g6 {[%emt 0:00:51]} 50. Ng3 {[%emt 0:00:18]} Rf8 {[%emt 0:01:16]} 51. Rf3 {[%emt 0:00:01]} Rd8 {[%emt 0:00:46]} 52. f5+ {[%emt 0:00:40]} gxf5+ {[%emt 0:00:12]} 53. Nxf5 {[%emt 0:00:02]} Rf8 {[%emt 0:02:26]} 54. Rf1 {[%emt 0:04:54]} Kd7 {[%emt 0:01:15]} 55. Rh1 {[%emt 0:01:00]} Rg8 {[%emt 0:03:29]} 56. Rh7 {[%emt 0:00:37]} Re8 {[%emt 0:00:55]} 57. g6 {[%emt 0:00:34]} Kd8 {[%emt 0:00:38]} 58. Nxe7 {[%emt 0:01:20]} Rxe7 {[%emt 0:00:16]} 59. g7 {[%emt 0:00:02]} Kd7 {[%emt 0:01:20]} 1-0

[Event "Istanbul Open 2018"]
[Site "Istanbul"]
[Date "2018.09.07"]
[Round "8"]
[White "Sarikavak, Serdar Ihsan"]
[Black "Abishli, Oghuz"]
[Result "1/2-1/2"]
[ECO "A40"]
[WhiteElo "1798"]
[BlackElo "2099"]
[Annotator "NA RC"]
[PlyCount "89"]
[EventDate "2018.09.02"]
[EventType "swiss"]
[EventCountry "TUR"]
[SourceTitle "playchess.com"]
[Source "ChessBase"]
[SourceQuality "1"]
[TimeControl "5400+30"]

1. e4 {[%emt 0:00:30]} c5 {[%emt 0:00:30]} 2. Nf3 {[%emt 0:00:30]} g6 {[%emt 0:00:00]} 3. d4 {[%emt 0:00:00]} cxd4 {[%emt 0:00:00]} 4. Nxd4 {[%emt 0:00:00]} Bg7 {[%emt 0:00:30]} 5. c4 {[%emt 0:00:00]} b6 {[%emt 0:00:30]} 6. Nc3 {[%emt 0:01:00]} Bb7 {[%emt 0:00:00]} 7. Be3 {[%emt 0:01:30] A40: Unusual replies to 1 d4} (7. Be2 Nc6 8. Be3 Nf6 9. O-O O-O 10. Qd2 Qb8 11. f3 Rd8 12. Rfd1 (12. f4 d6 13. Ndb5 Rd7 14. Rad1 Qf8 15. g4 Rdd8 16. g5 Nd7 17. f5 Be5 18. Nd5 Rac8 19. fxg6 hxg6 20. Rf3 Bh8 21. Rh3 Nde5 22. Qe1 {1-0 (22) Bogdanovich,S (2581)-Kislinsky,A (2489) Kiev 2015}) 12... e6 13. Nxc6 dxc6 14. Qxd8+ Qxd8 15. Rxd8+ Rxd8 16. a4 Nd7 17. a5 Rb8 18. Rd1 Bc8 19. axb6 axb6 20. Na4 {1-0 (44) Fridman,D (2668)-McShane,L (2713) Wolvega 2012}) 7... Nf6 {[%emt 0:00:00]} 8. f3 {[%emt 0:00:30]} O-O {[%emt 0:00:30]} 9. Qd2 {[%emt 0:02:30]} Nc6 {[%emt 0:00:30]} 10. Nxc6 $146 {[%emt 0:05:30]} dxc6 {[%emt 0:12:30]} 11. Be2 {[%emt 0:05:30]} Qc7 {[%emt 0:02:30]} 12. O-O-O {[%emt 0:03:30]} b5 {[%emt 0:17:30]} 13. Bh6 {[%emt 0:07:30]} b4 {[%emt 0:04:30]} 14. Bxg7 {[%emt 0:05:30]} Kxg7 {[%emt 0:04:30]} 15. Na4 {[%emt 0:02:30]} c5 {[%emt 0:01:30]} 16. Qe3 {[%emt 0:02:30]} Nd7 {[%emt 0:17:30]} 17. h4 {[%emt 0:11:30]} h6 {[%emt 0:07:30]} 18. Rd3 {[%emt 0:18:30] [#]} Nb6 $1 {[%emt 0:09:30]} 19. Nxb6 {[%emt 0:13:34]} axb6 {[%emt 0:00:22]} 20. Kb1 {[%emt 0:01:00]} Qe5 {[%emt 0:01:24]} 21. Bd1 {[%emt 0:06:10]} Rfd8 {[%emt 0:02:30]} 22. Bc2 {[%emt 1:39:43]} Rd4 {[%emt 1:38:24]} 23. Rhd1 {[%emt 0:00:30]} Rad8 {[%emt 0:00:30]} 24. Qe1 {[%emt 0:00:30]} Ba6 {[%emt 0:00:30]} 25. b3 {[%emt 0:00:30]} Rxd3 {[%emt 0:00:30]} 26. Bxd3 {[%emt 0:00:30]} Bb7 {[%emt 0:00:29]} 27. Bc2 {[%emt 0:00:47]} Rxd1+ $15 {[%emt 0:01:44]} 28. Qxd1 {[%emt 0:00:10]} Qd6 {[%emt 0:00:08]} 29. Qxd6 {[%emt 0:01:08]} exd6 {[%emt 0:00:03]} 30. Kc1 {[%emt 0:00:15]} g5 {[%emt 0:00:48]} 31. hxg5 {[%emt 0:00:50]} hxg5 {[%emt 0:00:04]} 32. Kd2 {[%emt 0:00:24]} Kf6 {[%emt 0:00:39]} 33. Ke3 {[%emt 0:00:28]} Ke5 {[%emt 0:00:08]} 34. g3 {[%emt 0:00:35]} f6 {[%emt 0:00:11]} 35. Bd3 {[%emt 0:00:28]} Bc6 {[%emt 0:01:04]} 36. Bf1 {[%emt 0:00:29]} g4 {[%emt 0:01:07]} 37. f4+ {[%emt 0:00:42]} Ke6 {[%emt 0:00:03]} 38. f5+ {[%emt 0:00:27]} Ke5 {[%emt 0:00:10]} 39. Bd3 {[%emt 0:00:27]} Bd7 {[%emt 0:00:04]} 40. Be2 {[%emt 0:00:25]} Bc6 {[%emt 0:00:05]} 41. Bd3 {[%emt 0:00:09]} Bb7 {[%emt 0:00:03]} 42. Bc2 {[%emt 0:00:25]} Ba6 {[%emt 0:01:08]} 43. Bd1 {[%emt 0:00:20]} Bb7 {[%emt 0:01:53]} 44. Bc2 {[%emt 0:00:05]} Ba6 {[%emt 0:00:05]} 45. Bd3 {[%emt 0:00:35]} 1/2-1/2